fUSD/lending_fUSD_20260605
["ID","MTS","AMOUNT","RATE_DAILY","PERIOD"]
[424179523,1780632640000,-500.0,0.00013698,2]
[424179510,1780632640000,-619.29,0.00013698,2]
[424179499,1780632640000,-619.29,0.00013698,2]
[424179478,1780632640000,-500.0,0.00013698,2]
[424179418,1780632640000,-606.11,0.00013698,2]
[424179463,1780632640000,-500.0,0.00013698,2]
[424179447,1780632640000,-500.0,0.00013698,2]
[424179425,1780632640000,-606.11,0.00013698,2]
[424179419,1780632640000,-606.11,0.00013698,2]
[424179521,1780632640000,-500.0,0.00013698,2]
[424179515,1780632640000,-500.0,0.00013698,2]
[424179477,1780632640000,-500.0,0.00013698,2]
[424179572,1780632641000,-642.01,0.00013698,2]
[424179650,1780632641000,-262.77778295,0.0001379,7]
[424179594,1780632641000,-642.01,0.00013698,2]
[424179593,1780632641000,-642.01,0.00013698,2]
[424179614,1780632641000,-500.0,0.00013698,2]
[424179613,1780632641000,-500.0,0.00013698,2]
[424179642,1780632641000,-150.0,0.0001377,2]
[424179620,1780632641000,-2500.0,0.00013699,2]
[424179616,1780632641000,-500.0,0.00013698,2]
[424179585,1780632641000,-642.01,0.00013698,2]
[424179546,1780632641000,-1016.47,0.00013698,2]
[424179555,1780632641000,-1016.47,0.00013698,2]
[424179596,1780632641000,-642.01,0.00013698,2]
[424179628,1780632641000,-677.49,0.000137,2]
[424179632,1780632641000,-150.0,0.0001371,2]
[424179638,1780632641000,-1366.656706,0.0001371,2]
[424179538,1780632641000,-1159.11,0.00013698,2]
[424179586,1780632641000,-642.01,0.00013698,2]
[424179609,1780632641000,-500.0,0.00013698,2]
[424179646,1780632641000,-150.0,0.00013783,2]
[424179544,1780632641000,-1016.47,0.00013698,2]
[424179551,1780632641000,-1016.47,0.00013698,2]
[424179568,1780632641000,-1016.47,0.00013698,2]
[424179557,1780632641000,-1016.47,0.00013698,2]
[424179575,1780632641000,-642.01,0.00013698,2]
[424179583,1780632641000,-642.01,0.00013698,2]
[424179598,1780632641000,-642.01,0.00013698,2]
[424179550,1780632641000,-1016.47,0.00013698,2]
[424179573,1780632641000,-642.01,0.00013698,2]
[424179579,1780632641000,-642.01,0.00013698,2]
[424179622,1780632641000,-200.0,0.00013699,2]
[424179539,1780632641000,-1159.11,0.00013698,2]
[424179540,1780632641000,-1159.11,0.00013698,2]
[424179607,1780632641000,-500.0,0.00013698,2]
[424179610,1780632641000,-500.0,0.00013698,2]
[424179634,1780632641000,-4033.687939,0.0001371,2]
[424179541,1780632641000,-1016.47,0.00013698,2]
[424179545,1780632641000,-1016.47,0.00013698,2]
[424179581,1780632641000,-642.01,0.00013698,2]
[424179602,1780632641000,-642.01,0.00013698,2]
[424179553,1780632641000,-1016.47,0.00013698,2]
[424179591,1780632641000,-642.01,0.00013698,2]
[424179577,1780632641000,-642.01,0.00013698,2]
[424179604,1780632641000,-500.0,0.00013698,2]
[424179600,1780632641000,-642.01,0.00013698,2]
[424179648,1780632641000,-150.0,0.00013787,2]
[424179640,1780632641000,-150.0,0.00013726,2]
[424179548,1780632641000,-1016.47,0.00013698,2]
[424179564,1780632641000,-1016.47,0.00013698,2]
[424179566,1780632641000,-1016.47,0.00013698,2]
[424179559,1780632641000,-1016.47,0.00013698,2]
[424179561,1780632641000,-1016.47,0.00013698,2]
[424179589,1780632641000,-642.01,0.00013698,2]
[424179618,1780632641000,-503.27720088,0.00013698,2]
[424179626,1780632641000,-6132.12,0.00013699,2]
[424179652,1780632641000,-150.0,0.0001379,2]
[424179636,1780632641000,-1156.099545,0.0001371,2]
[424179654,1780632641000,-171.1,0.00013836,2]
[424179735,1780632641000,-953.26,0.000141,2]
[424179645,1780632641000,-150.0,0.00013778,2]
[424179741,1780632641000,-953.26,0.000141,2]
[424179673,1780632641000,-1292.69244003,0.00013883,2]
[424179658,1780632641000,-166.66,0.00013836,2]
[424179700,1780632641000,-150.0,0.00013981,2]
[424179723,1780632641000,-2035.04906031,0.00014097,2]
[424179695,1780632641000,-150.0,0.00013965,2]
[424179703,1780632641000,-150.0,0.00014013,2]
[424179671,1780632641000,-150.0,0.00013878,2]
[424179709,1780632641000,-1000.0,0.0001406,2]
[424179745,1780632641000,-953.26,0.000141,2]
[424179665,1780632641000,-500.0,0.0001387,2]
[424179687,1780632641000,-150.0,0.00013898,2]
[424179705,1780632641000,-150.0,0.00014049,2]
[424179701,1780632641000,-39398.39409034,0.0001399,2]
[424179747,1780632641000,-500.0,0.000141,2]
[424179757,1780632641000,-500.0,0.000141,2]
[424179759,1780632641000,-500.0,0.000141,2]
[424179755,1780632641000,-500.0,0.000141,2]
[424179761,1780632641000,-500.0,0.000141,2]
[424179763,1780632641000,-500.0,0.000141,2]
[424179749,1780632641000,-516.98237672,0.000141,2]
[424179751,1780632641000,-500.0,0.000141,2]
[424179765,1780632641000,-500.0,0.000141,2]
[424179753,1780632641000,-500.0,0.000141,2]
[424179767,1780632641000,-500.0,0.000141,2]
[424179570,1780632641000,-443.26218347,0.00013698,2]
[424179717,1780632641000,-566.03,0.00014079,2]
[424179691,1780632641000,-150.0,0.00013936,2]
[424179727,1780632641000,-841.3188791,0.000141,2]
[424179733,1780632641000,-953.26,0.000141,2]
[424179660,1780632641000,-150.0,0.0001384,2]
[424179543,1780632641000,-1016.47,0.00013698,2]
[424179624,1780632641000,-166.66,0.00013699,2]
[424179630,1780632641000,-150.0,0.00013702,2]
[424179668,1780632641000,-219.18244468,0.00013875,2]
[424179656,1780632641000,-171.1,0.00013836,2]
[424179675,1780632641000,-2035.04906031,0.00013889,2]
[424179707,1780632641000,-150.0,0.00014053,2]
[424179698,1780632641000,-166.66,0.00013973,2]
[424179693,1780632641000,-150.0,0.00013955,2]
[424179737,1780632641000,-953.26,0.000141,2]
[424179666,1780632641000,-314.45676353,0.00013875,2]
[424179685,1780632641000,-1114.73896207,0.00013894,2]
[424179542,1780632641000,-1016.47,0.00013698,2]
[424179711,1780632641000,-358.48,0.0001406,2]
[424179689,1780632641000,-150.0,0.00013913,2]
[424179769,1780632641000,-500.0,0.000141,2]
[424179743,1780632641000,-953.26,0.000141,2]
[424179739,1780632641000,-953.26,0.000141,2]
[424179729,1780632641000,-4328.48051187,0.000141,2]
[424179725,1780632641000,-263.91170216,0.000141,2]
[424179715,1780632641000,-415.95553016,0.00014076,2]
[424179731,1780632641000,-2274.60278587,0.000141,2]
[424179721,1780632641000,-150.0,0.00014087,2]
[424179719,1780632641000,-2765.0305412,0.00014079,2]
[424179662,1780632641000,-150.0,0.00013846,2]
[424179713,1780632641000,-150.0,0.0001407,2]
[424179861,1780632642000,-501.26941348,0.00014108,2]
[424179857,1780632642000,-191.0,0.000141,2]
[424179853,1780632642000,-500.0,0.000141,2]
[424179826,1780632642000,-500.0,0.000141,2]
[424179851,1780632642000,-500.0,0.000141,2]
[424179845,1780632642000,-500.0,0.000141,2]
[424179849,1780632642000,-500.0,0.000141,2]
[424179828,1780632642000,-500.0,0.000141,2]
[424179830,1780632642000,-500.0,0.000141,2]
[424179843,1780632642000,-500.0,0.000141,2]
[424179865,1780632642000,-502.30031502,0.00014108,2]
[424179847,1780632642000,-500.0,0.000141,2]
[424179859,1780632642000,-150.0,0.00014102,2]
[424179873,1780632642000,-500.0,0.00014108,2]
[424179863,1780632642000,-500.0,0.00014108,2]
[424179867,1780632642000,-500.0,0.00014108,2]
[424179869,1780632642000,-500.0,0.00014108,2]
[424179871,1780632642000,-500.0,0.00014108,2]
[424179875,1780632642000,-953.26,0.00014108,2]
[424179886,1780632642000,-565.87,0.00014108,2]
[424179877,1780632642000,-953.26,0.00014108,2]
[424179880,1780632642000,-500.0,0.00014108,2]
[424179893,1780632642000,-251.42421478,0.00014108,2]
[424179882,1780632642000,-500.0,0.00014108,2]
[424179884,1780632642000,-309.2506608,0.00014108,2]
[424179840,1780632642000,-398.80600374,0.000141,2]
[424179855,1780632642000,-500.0,0.000141,2]
[424179832,1780632642000,-500.0,0.000141,2]
[424179774,1780632642000,-500.0,0.000141,2]
[424179834,1780632642000,-500.0,0.000141,2]
[424179899,1780632642000,-500.0,0.00014108,2]
[424179772,1780632642000,-500.0,0.000141,2]
[424179784,1780632642000,-565.87,0.000141,2]
[424179786,1780632642000,-565.87,0.000141,2]
[424179778,1780632642000,-500.0,0.000141,2]
[424179782,1780632642000,-565.87,0.000141,2]
[424179790,1780632642000,-565.87,0.000141,2]
[424179788,1780632642000,-565.87,0.000141,2]
[424179780,1780632642000,-565.87,0.000141,2]
[424179792,1780632642000,-565.87,0.000141,2]
[424179776,1780632642000,-500.0,0.000141,2]
[424179794,1780632642000,-500.0,0.000141,2]
[424179796,1780632642000,-500.0,0.000141,2]
[424179800,1780632642000,-500.0,0.000141,2]
[424179802,1780632642000,-500.0,0.000141,2]
[424179798,1780632642000,-500.0,0.000141,2]
[424179804,1780632642000,-500.0,0.000141,2]
[424179806,1780632642000,-500.0,0.000141,2]
[424179808,1780632642000,-500.0,0.000141,2]
[424179814,1780632642000,-500.0,0.000141,2]
[424179819,1780632642000,-500.0,0.000141,2]
[424179812,1780632642000,-500.0,0.000141,2]
[424179811,1780632642000,-500.0,0.000141,2]
[424179810,1780632642000,-500.0,0.000141,2]
[424179816,1780632642000,-500.0,0.000141,2]
[424179823,1780632642000,-500.0,0.000141,2]
[424179836,1780632642000,-500.0,0.000141,2]
[424179838,1780632642000,-500.0,0.000141,2]
[424179889,1780632642000,-565.87,0.00014108,2]
[424179895,1780632642000,-500.0,0.00014108,2]
[424179897,1780632642000,-500.0,0.00014108,2]
[424179953,1780632642000,-425.3532313,0.00014418,2]
[424179952,1780632642000,-150.0,0.00014415,2]
[424179956,1780632642000,-1292.69244003,0.00014457,2]
[424179950,1780632642000,-150.0,0.00014389,2]
[424179959,1780632642000,-29999.99,0.00014504,2]
[424179958,1780632642000,-150.0,0.00014492,2]
[424179969,1780632642000,-150.0,0.000146,2]
[424179971,1780632642000,-150.0,0.00014644,2]
[424179960,1780632642000,-9999.99,0.00014504,2]
[424179970,1780632642000,-1200.0,0.000146,5]
[424179962,1780632642000,-150.0,0.00014524,2]
[424179961,1780632642000,-2035.04906031,0.00014513,2]
[424179965,1780632642000,-1114.73896207,0.00014565,2]
[424179957,1780632642000,-150.0,0.00014472,2]
[424179963,1780632642000,-150.0,0.0001453,2]
[424179968,1780632642000,-150.0,0.00014592,2]
[424179966,1780632642000,-150.0,0.0001458,2]
[424179967,1780632642000,-150.0,0.00014587,2]
[424179973,1780632642000,-150.0,0.00014668,2]
[424179972,1780632642000,-150.0,0.0001466,2]
[424179974,1780632642000,-150.0,0.00014687,2]
[424179975,1780632642000,-1200.0,0.000147,5]
[424179977,1780632642000,-2351.0,0.00014715,2]
[424179978,1780632642000,-2035.04906031,0.00014721,2]
[424179976,1780632642000,-150.0,0.00014702,2]
[424179980,1780632642000,-150.0,0.00014756,2]
[424179979,1780632642000,-150.0,0.00014728,2]
[424179891,1780632642000,-500.0,0.00014108,2]
[424179964,1780632642000,-433.0,0.00014542,2]
[424179951,1780632642000,-150.0,0.00014405,2]
[424179981,1780632642000,-150.0,0.00014759,2]
[424179955,1780632642000,-150.0,0.00014456,2]
[424179954,1780632642000,-150.0,0.00014434,2]
[424179901,1780632642000,-500.0,0.00014108,2]
[424179913,1780632642000,-150.0,0.00014128,2]
[424179915,1780632642000,-150.0,0.00014141,2]
[424179904,1780632642000,-500.0,0.00014108,2]
[424179919,1780632642000,-1292.69244003,0.0001417,2]
[424179910,1780632642000,-150.0,0.00014117,2]
[424179908,1780632642000,-166.66,0.0001411,2]
[424179906,1780632642000,-500.0,0.00014108,2]
[424179917,1780632642000,-500.0,0.00014144,2]
[424179923,1780632642000,-150.0,0.00014185,2]
[424179937,1780632642000,-150.0,0.00014268,2]
[424179938,1780632642000,-150.0,0.000143,2]
[424179921,1780632642000,-150.0,0.00014185,2]
[424179925,1780632642000,-150.0,0.00014229,2]
[424179940,1780632642000,-796.38,0.000143,2]
[424179949,1780632642000,-150.0,0.00014387,2]
[424179947,1780632642000,-80148.9938121,0.00014381,2]
[424179946,1780632642000,-150.0,0.00014357,2]
[424179928,1780632642000,-1114.73896207,0.00014229,2]
[424179935,1780632642000,-150.0,0.00014253,2]
[424179930,1780632642000,-150.0,0.00014242,2]
[424179948,1780632642000,-166.66,0.00014384,2]
[424179933,1780632642000,-166.66,0.00014247,2]
[424179943,1780632642000,-2035.04906031,0.00014305,2]
[424179944,1780632642000,-150.0,0.00014317,2]
[424179941,1780632642000,-640.04,0.000143,2]
[424179945,1780632642000,-150.0,0.00014321,2]
[424180017,1780632643000,-500.0,0.00014799,2]
[424180023,1780632643000,-500.0,0.00014799,2]
[424180024,1780632643000,-500.0,0.00014799,2]
[424180021,1780632643000,-500.0,0.00014799,2]
[424180011,1780632643000,-565.87,0.00014799,2]
[424180015,1780632643000,-500.0,0.00014799,2]
[424180014,1780632643000,-500.0,0.00014799,2]
[424180018,1780632643000,-500.0,0.00014799,2]
[424180016,1780632643000,-500.0,0.00014799,2]
[424180020,1780632643000,-500.0,0.00014799,2]
[424180026,1780632643000,-500.0,0.00014799,2]
[424180013,1780632643000,-565.87,0.00014799,2]
[424180027,1780632643000,-400.71550208,0.00014799,2]
[424180039,1780632643000,-500.0,0.0001482,2]
[424180035,1780632643000,-606.11,0.0001482,2]
[424180033,1780632643000,-500.0,0.0001482,2]
[424180025,1780632643000,-500.0,0.00014799,2]
[424180030,1780632643000,-25000.0,0.00014803,3]
[424180031,1780632643000,-25000.0,0.00014812,3]
[424180028,1780632643000,-1200.0,0.000148,5]
[424180032,1780632643000,-150.0,0.00014817,2]
[424180037,1780632643000,-500.0,0.0001482,2]
[424180043,1780632643000,-642.01,0.0001482,2]
[424180038,1780632643000,-500.0,0.0001482,2]
[424180045,1780632643000,-25000.0,0.00014821,3]
[424180047,1780632643000,-151.0,0.00014821,2]
[424180022,1780632643000,-500.0,0.00014799,2]
[424180034,1780632643000,-716.71,0.0001482,2]
[424180019,1780632643000,-500.0,0.00014799,2]
[424180005,1780632643000,-500.0,0.00014799,2]
[424180010,1780632643000,-565.87,0.00014799,2]
[424180049,1780632643000,-151.0,0.00014821,2]
[424179984,1780632643000,-269.8,0.00014787,2]
[424179983,1780632643000,-25000.0,0.00014786,3]
[424179982,1780632643000,-150.0,0.00014766,2]
[424179988,1780632643000,-500.0,0.00014799,2]
[424179989,1780632643000,-500.0,0.00014799,2]
[424179990,1780632643000,-500.0,0.00014799,2]
[424179991,1780632643000,-500.0,0.00014799,2]
[424179987,1780632643000,-500.0,0.00014799,2]
[424179986,1780632643000,-150.0,0.00014796,2]
[424179992,1780632643000,-500.0,0.00014799,2]
[424179993,1780632643000,-500.0,0.00014799,2]
[424179985,1780632643000,-25000.0,0.00014794,3]
[424180012,1780632643000,-565.87,0.00014799,2]
[424179995,1780632643000,-338.87344356,0.00014799,2]
[424179996,1780632643000,-953.26,0.00014799,2]
[424179998,1780632643000,-953.26,0.00014799,2]
[424179997,1780632643000,-953.26,0.00014799,2]
[424180004,1780632643000,-500.0,0.00014799,2]
[424180007,1780632643000,-502.46150506,0.00014799,2]
[424180006,1780632643000,-500.0,0.00014799,2]
[424179999,1780632643000,-953.26,0.00014799,2]
[424180002,1780632643000,-339.62,0.00014799,2]
[424180000,1780632643000,-953.26,0.00014799,2]
[424180008,1780632643000,-565.87,0.00014799,2]
[424180003,1780632643000,-500.0,0.00014799,2]
[424180001,1780632643000,-953.26,0.00014799,2]
[424180009,1780632643000,-565.87,0.00014799,2]
[424179994,1780632643000,-500.0,0.00014799,2]
[424180051,1780632643000,-836.056231,0.00014821,2]
[424180110,1780632643000,-25000.0,0.00014865,3]
[424180042,1780632643000,-1016.47,0.0001482,2]
[424180080,1780632643000,-500.0,0.0001485,2]
[424180086,1780632643000,-500.0,0.0001485,2]
[424180090,1780632643000,-500.0,0.0001485,2]
[424180091,1780632643000,-500.0,0.0001485,2]
[424180084,1780632643000,-500.0,0.0001485,2]
[424180087,1780632643000,-500.0,0.0001485,2]
[424180085,1780632643000,-500.0,0.0001485,2]
[424180088,1780632643000,-500.0,0.0001485,2]
[424180089,1780632643000,-500.0,0.0001485,2]
[424180095,1780632643000,-500.0,0.0001485,2]
[424180092,1780632643000,-500.0,0.0001485,2]
[424180094,1780632643000,-500.0,0.0001485,2]
[424180093,1780632643000,-500.0,0.0001485,2]
[424180083,1780632643000,-500.0,0.0001485,2]
[424180096,1780632643000,-500.0,0.0001485,2]
[424180098,1780632643000,-500.0,0.0001485,2]
[424180100,1780632643000,-500.0,0.0001485,2]
[424180099,1780632643000,-500.0,0.0001485,2]
[424180101,1780632643000,-500.0,0.0001485,2]
[424180105,1780632643000,-17883.657825,0.00014854,2]
[424180103,1780632643000,-500.0,0.0001485,2]
[424180102,1780632643000,-500.0,0.0001485,2]
[424180106,1780632643000,-25000.0,0.00014856,3]
[424180108,1780632643000,-150.0,0.00014864,2]
[424180107,1780632643000,-25000.0,0.00014856,3]
[424180111,1780632643000,-25000.0,0.00014874,3]
[424180041,1780632643000,-1159.11,0.0001482,2]
[424180112,1780632643000,-25000.0,0.00014874,3]
[424180097,1780632643000,-500.0,0.0001485,2]
[424180081,1780632643000,-500.0,0.0001485,2]
[424180109,1780632643000,-25000.0,0.00014865,3]
[424180079,1780632643000,-500.0,0.0001485,2]
[424180082,1780632643000,-500.0,0.0001485,2]
[424180040,1780632643000,-619.29,0.0001482,2]
[424180052,1780632643000,-836.056231,0.00014821,2]
[424180054,1780632643000,-836.056231,0.00014821,2]
[424180064,1780632643000,-716.71,0.00014849,2]
[424180056,1780632643000,-151.0,0.00014821,2]
[424180063,1780632643000,-500.0,0.00014849,2]
[424180062,1780632643000,-25000.0,0.00014847,3]
[424180058,1780632643000,-25000.0,0.0001483,3]
[424180055,1780632643000,-151.0,0.00014821,2]
[424180061,1780632643000,-150.0,0.00014844,2]
[424180057,1780632643000,-151.0,0.00014821,2]
[424180060,1780632643000,-25000.0,0.00014838,3]
[424180066,1780632643000,-500.0,0.00014849,2]
[424180053,1780632643000,-836.056231,0.00014821,2]
[424180065,1780632643000,-606.11,0.00014849,2]
[424180070,1780632643000,-1159.11,0.00014849,2]
[424180073,1780632643000,-233439.72378349,0.0001485,2]
[424180072,1780632643000,-642.01,0.00014849,2]
[424180074,1780632643000,-151.0,0.0001485,2]
[424180059,1780632643000,-154.330341,0.0001483,2]
[424180069,1780632643000,-619.29,0.00014849,2]
[424180078,1780632643000,-500.0,0.0001485,2]
[424180071,1780632643000,-1016.47,0.00014849,2]
[424180076,1780632643000,-151.0,0.0001485,2]
[424180075,1780632643000,-151.0,0.0001485,2]
[424180067,1780632643000,-500.0,0.00014849,2]
[424180068,1780632643000,-500.0,0.00014849,2]
[424180077,1780632643000,-151.0,0.0001485,2]
[424180153,1780632644000,-642.01,0.00014899,2]
[424180152,1780632644000,-642.01,0.00014899,2]
[424180150,1780632644000,-642.01,0.00014899,2]
[424180147,1780632644000,-1016.47,0.00014899,2]
[424180145,1780632644000,-1016.47,0.00014899,2]
[424180155,1780632644000,-25000.0,0.000149,3]
[424180149,1780632644000,-1016.70869131,0.00014899,2]
[424180143,1780632644000,-1159.11,0.00014899,2]
[424180148,1780632644000,-1016.47,0.00014899,2]
[424180154,1780632644000,-642.21440715,0.00014899,2]
[424180146,1780632644000,-1016.47,0.00014899,2]
[424180151,1780632644000,-642.01,0.00014899,2]
[424180161,1780632644000,-836.056231,0.000149,2]
[424180157,1780632644000,-10000.0,0.000149,2]
[424180163,1780632644000,-836.056231,0.000149,2]
[424180158,1780632644000,-1114.73896207,0.000149,2]
[424180160,1780632644000,-1200.0,0.000149,5]
[424180159,1780632644000,-25000.0,0.000149,3]
[424180162,1780632644000,-836.056231,0.000149,2]
[424180164,1780632644000,-836.056231,0.000149,2]
[424180167,1780632644000,-157.975636,0.000149,2]
[424180165,1780632644000,-151.0,0.000149,2]
[424180166,1780632644000,-151.0,0.000149,2]
[424180169,1780632644000,-219.18244468,0.000149,2]
[424180144,1780632644000,-1159.30171174,0.00014899,2]
[424180171,1780632644000,-150.0,0.00014932,2]
[424180156,1780632644000,-33256.6326,0.000149,2]
[424180140,1780632644000,-1159.11,0.00014899,2]
[424180128,1780632644000,-606.11,0.00014899,2]
[424180141,1780632644000,-1159.11,0.00014899,2]
[424180172,1780632644000,-242.9366496,0.00014932,2]
[424180117,1780632644000,-151.0,0.00014891,2]
[424180115,1780632644000,-25000.0,0.00014882,3]
[424180116,1780632644000,-151.0,0.00014891,2]
[424180113,1780632644000,-150.0,0.00014874,2]
[424180114,1780632644000,-25000.0,0.00014882,3]
[424180118,1780632644000,-25000.0,0.00014891,3]
[424180121,1780632644000,-716.71,0.00014899,2]
[424180126,1780632644000,-606.11,0.00014899,2]
[424180129,1780632644000,-606.11,0.00014899,2]
[424180122,1780632644000,-716.71,0.00014899,2]
[424180119,1780632644000,-25000.0,0.00014891,3]
[424180127,1780632644000,-606.11,0.00014899,2]
[424180124,1780632644000,-716.71,0.00014899,2]
[424180123,1780632644000,-716.71,0.00014899,2]
[424180120,1780632644000,-484.57940694,0.00014899,2]
[424180125,1780632644000,-716.79127567,0.00014899,2]
[424180130,1780632644000,-606.34019423,0.00014899,2]
[424180137,1780632644000,-619.29,0.00014899,2]
[424180133,1780632644000,-152.01996913,0.00014899,2]
[424180134,1780632644000,-400.58877755,0.00014899,2]
[424180131,1780632644000,-507.80937372,0.00014899,2]
[424180132,1780632644000,-500.0,0.00014899,2]
[424180139,1780632644000,-619.44525242,0.00014899,2]
[424180135,1780632644000,-619.29,0.00014899,2]
[424180138,1780632644000,-619.29,0.00014899,2]
[424180142,1780632644000,-1159.11,0.00014899,2]
[424180136,1780632644000,-619.29,0.00014899,2]
[424180170,1780632644000,-166.63099763,0.00014932,2]
[424180168,1780632644000,-314.45676353,0.000149,2]
[424180179,1780632644000,-300.0,0.00014941,2]
[424180208,1780632644000,-500.0,0.00014998,2]
[424180207,1780632644000,-500.0,0.00014998,2]
[424180210,1780632644000,-953.26,0.00014999,2]
[424180212,1780632644000,-953.26,0.00014999,2]
[424180215,1780632644000,-953.26,0.00014999,2]
[424180211,1780632644000,-953.26,0.00014999,2]
[424180205,1780632644000,-953.26,0.00014998,2]
[424180213,1780632644000,-953.26,0.00014999,2]
[424180214,1780632644000,-953.26,0.00014999,2]
[424180217,1780632644000,-565.87,0.00014999,2]
[424180216,1780632644000,-953.33631724,0.00014999,2]
[424180226,1780632644000,-300.42267291,0.00014999,2]
[424180219,1780632644000,-565.87,0.00014999,2]
[424180227,1780632644000,-228.337412,0.00014999,2]
[424180225,1780632644000,-542.15546156,0.00014999,2]
[424180220,1780632644000,-565.87,0.00014999,2]
[424180218,1780632644000,-565.87,0.00014999,2]
[424180222,1780632644000,-565.87,0.00014999,2]
[424180223,1780632644000,-565.87,0.00014999,2]
[424180221,1780632644000,-565.87,0.00014999,2]
[424180224,1780632644000,-565.94845231,0.00014999,2]
[424180228,1780632644000,-666.0,0.00014999,2]
[424180230,1780632644000,-666.0,0.00014999,2]
[424180229,1780632644000,-300.0,0.00014999,2]
[424180232,1780632644000,-454.0,0.00015,2]
[424180231,1780632644000,-444.0,0.00015,2]
[424180233,1780632644000,-14813438.10750983,0.00015,2]
[424180206,1780632644000,-565.87,0.00014998,2]
[424180209,1780632644000,-953.26,0.00014999,2]
[424180180,1780632644000,-666.0,0.00014941,2]
[424180201,1780632644000,-710.76235147,0.0001499,2]
[424180204,1780632644000,-500.0,0.00014998,2]
[424180178,1780632644000,-151.0,0.00014935,2]
[424180176,1780632644000,-4228.0312979,0.00014935,2]
[424180177,1780632644000,-151.0,0.00014935,2]
[424180174,1780632644000,-710.76235147,0.00014932,2]
[424180173,1780632644000,-155.67737119,0.00014932,2]
[424180175,1780632644000,-10818.8678005,0.00014935,2]
[424180181,1780632644000,-1820439.2317268,0.00014942,2]
[424180184,1780632644000,-151.0,0.00014942,2]
[424180185,1780632644000,-151.0,0.00014942,2]
[424180183,1780632644000,-151.0,0.00014942,2]
[424180188,1780632644000,-151.0,0.00014942,2]
[424180190,1780632644000,-836.056231,0.00014942,2]
[424180186,1780632644000,-151.0,0.00014942,2]
[424180182,1780632644000,-151.0,0.00014942,2]
[424180189,1780632644000,-151.0,0.00014942,2]
[424180187,1780632644000,-151.0,0.00014942,2]
[424180199,1780632644000,-150.89231479,0.00014986,2]
[424180202,1780632644000,-151.0,0.00014997,2]
[424180197,1780632644000,-154.53400447,0.00014986,2]
[424180194,1780632644000,-151.0,0.00014942,2]
[424180195,1780632644000,-151.0,0.00014942,2]
[424180200,1780632644000,-2765.0305412,0.0001499,2]
[424180198,1780632644000,-236.15184554,0.00014986,2]
[424180192,1780632644000,-836.056231,0.00014942,2]
[424180203,1780632644000,-151.0,0.00014997,2]
[424180193,1780632644000,-836.056231,0.00014942,2]
[424180191,1780632644000,-836.056231,0.00014942,2]
[424180196,1780632644000,-191.0,0.00014942,2]
[424180267,1780632645000,-284.914396,0.00015068,2]
[424180278,1780632645000,-284.914396,0.00015068,2]
[424180274,1780632645000,-284.914396,0.00015068,2]
[424180270,1780632645000,-284.914396,0.00015068,2]
[424180272,1780632645000,-284.914396,0.00015068,2]